fUSD/lending_fUSD_20250724
["ID","MTS","AMOUNT","RATE_DAILY","PERIOD"]
[374571359,1753360234853,-150.0,0.00023496,2]
[374571360,1753360234862,-150.0,0.00023496,2]
[374571361,1753360234875,-202.78034774,0.00023496,2]
[374571362,1753360234884,-150.0,0.00023496,2]
[374571363,1753360234894,-2025.02,0.000235,3]
[374571364,1753360234903,-200.0,0.000235,2]
[374571365,1753360234913,-503.68837759,0.00023521,2]
[374571366,1753360234923,-578.69819518,0.00023521,2]
[374571367,1753360234932,-1126.645831,0.00023521,2]
[374571368,1753360234942,-1580.24444285,0.00023555,9]
[374571369,1753360234951,-150.0,0.0002357,4]
[374571370,1753360234960,-1420.71,0.000236,7]
[374571371,1753360234969,-150.0,0.00023654,4]
[374571372,1753360234979,-1872.0,0.00023664,2]
[374571373,1753360234988,-153.0,0.00023668,2]
[374571374,1753360234997,-153.0,0.00023668,2]
[374571375,1753360235006,-153.0,0.00023668,2]
[374571376,1753360235015,-153.0,0.00023668,2]
[374571377,1753360235025,-153.0,0.00023668,2]
[374571378,1753360235034,-153.0,0.00023668,2]
[374571379,1753360235043,-153.0,0.00023668,2]
[374571380,1753360235052,-153.0,0.00023668,2]
[374571381,1753360235061,-153.0,0.00023669,2]
[374571382,1753360235070,-153.0,0.00023669,2]
[374571383,1753360235079,-153.0,0.00023669,2]
[374571384,1753360235089,-153.0,0.00023669,2]
[374571385,1753360235099,-153.0,0.00023669,2]
[374571386,1753360235108,-153.0,0.00023669,2]
[374571387,1753360235120,-153.0,0.00023669,2]
[374571388,1753360235133,-153.0,0.00023669,2]
[374571389,1753360235143,-153.0,0.00023669,2]
[374571390,1753360235153,-153.0,0.00023669,2]
[374571391,1753360235162,-153.0,0.00023669,2]
[374571392,1753360235173,-153.0,0.00023669,2]
[374571393,1753360235182,-153.0,0.00023669,2]
[374571394,1753360235193,-153.0,0.00023669,2]
[374571395,1753360235203,-153.0,0.00023669,2]
[374571396,1753360235212,-153.0,0.00023669,2]
[374571397,1753360235222,-153.0,0.00023669,2]
[374571398,1753360235232,-153.0,0.00023669,2]
[374571399,1753360235242,-168.0,0.00023684,2]
[374571400,1753360235251,-1580.24444285,0.00023693,9]
[374571401,1753360235261,-1150.17,0.00023703,2]
[374571402,1753360235271,-1000.0,0.00023721,2]
[374571403,1753360235280,-150.0,0.00023737,4]
[374571404,1753360235290,-150.0,0.00023737,4]
[374571405,1753360235300,-150.0,0.00023737,4]
[374571406,1753360235310,-150.0,0.00023737,4]
[374571407,1753360235320,-150.0,0.00023737,4]
[374571408,1753360235330,-227.0,0.0002377,2]
[374571409,1753360235339,-150.0,0.0002377,2]
[374571410,1753360235349,-200.0,0.0002377,2]
[374571411,1753360235359,-150.0,0.0002377,2]
[374571412,1753360235368,-868.0,0.0002377,2]
[374571413,1753360235380,-150.0,0.0002377,2]
[374571414,1753360235390,-150.0,0.0002377,2]
[374571415,1753360235399,-789.0,0.0002377,2]
[374571416,1753360235409,-150.0,0.0002377,2]
[374571417,1753360235418,-150.0,0.0002377,2]
[374571418,1753360235428,-527.0,0.0002379,2]
[374571419,1753360235438,-150.0,0.0002382,4]
[374571420,1753360235447,-152.0,0.00023825,3]
[374571421,1753360235457,-1580.24444285,0.00023831,10]
[374571422,1753360235467,-310.56,0.00023836,2]
[374571423,1753360235477,-500.0,0.00023838,2]
[374571424,1753360235487,-500.0,0.0002385,2]
[374571425,1753360235497,-671.87,0.00023852,2]
[374571426,1753360235507,-227.0,0.00023884,2]
[374571427,1753360235517,-152.49810851,0.000239,2]
[374571428,1753360235526,-5000.0,0.000239,2]
[374571429,1753360235536,-150.0,0.00023904,4]
[374571430,1753360235546,-211.01152796,0.00023915,2]
[374571431,1753360235555,-160.0,0.00023915,2]
[374571432,1753360235565,-477.18900901,0.00023915,2]
[374571433,1753360235575,-1580.24444285,0.00023969,10]
[374571434,1753360235585,-500.0,0.00023973,2]
[374571435,1753360235595,-500.70045814,0.00023973,2]
[374571436,1753360235605,-505.41818695,0.00023973,2]
[374571437,1753360235615,-500.0,0.00023973,2]
[374571438,1753360235627,-500.0,0.00023973,2]
[374571439,1753360235636,-500.0,0.00023973,2]
[374571440,1753360235645,-159.79317044,0.00023973,2]
[374571441,1753360235655,-500.0,0.00023973,2]
[374571442,1753360235664,-500.0,0.00023973,2]
[374571443,1753360235673,-502.87877734,0.00023973,2]
[374571444,1753360235683,-500.0,0.00023973,2]
[374571445,1753360235693,-150.0,0.00023987,4]
[374571446,1753360235702,-500.0,0.00023988,2]
[374571447,1753360235712,-210.4,0.0002399,2]
[374571448,1753360235721,-29898.29716226,0.00024,2]
[374571449,1753360235731,-6565.1295436,0.00024,14]
[374571450,1753360235740,-128399.39419921,0.00024,4]
[374571451,1753360235758,-12029.93042353,0.00024,4]
[374571452,1753360235793,-73994.82661488,0.00024,4]
[374571453,1753360235804,-64585.47055656,0.00024,4]
[374571454,1753360235815,-66432.137368,0.00024,4]
[374571455,1753360235824,-1351.69743863,0.00024,5]
[374571456,1753360235833,-10208.35,0.00024,7]
[374571457,1753360235843,-3830.28794315,0.00024,2]
[374571458,1753360235855,-1169.71205685,0.00024,2]
[374571459,1753360235864,-1000.0,0.00024,2]
[374571460,1753360235876,-10000.01205016,0.00024,5]
[374571461,1753360235885,-57693.54299737,0.00024,2]
[374571462,1753360235895,-839.91269601,0.00024,7]
[374571463,1753360235904,-211.01152796,0.00024,7]
[374571464,1753360235914,-477.18900901,0.00024,7]
[374571465,1753360235924,-2633.5,0.00024,2]
[374571466,1753360235933,-290.35,0.00024033,2]
[374571467,1753360235942,-168.07,0.00024043,2]
[374571468,1753360235951,-271.24328861,0.00024044,2]
[374571469,1753360235961,-200.0,0.00024044,2]
[374571470,1753360235970,-868.0,0.00024044,2]
[374571471,1753360235980,-200.0,0.00024044,2]
[374571472,1753360235990,-150.0,0.00024044,2]
[374571473,1753360235999,-789.0,0.00024044,2]
[374571474,1753360236009,-200.0,0.00024044,2]
[374571475,1753360236019,-150.0,0.00024044,2]
[374571476,1753360236029,-150.0,0.0002407,4]
[374571477,1753360236038,-1580.24444285,0.00024107,10]
[374571478,1753360236048,-150.0,0.00024153,4]
[374571479,1753360236058,-150.0,0.00024153,4]
[374571480,1753360236068,-228.0,0.00024164,7]
[374571481,1753360236079,-505.0,0.00024217,8]
[374571482,1753360236088,-150.0,0.00024237,4]
[374571483,1753360236098,-1580.24444285,0.00024245,10]
[374571484,1753360236107,-150.0,0.00024275,2]
[374571485,1753360236117,-4004.0,0.000243,3]
[374571486,1753360236131,-262.69,0.00024309,2]
[374571487,1753360236141,-868.0,0.00024318,2]
[374571488,1753360236150,-150.0,0.00024318,2]
[374571489,1753360236160,-789.0,0.00024318,2]
[374571490,1753360236170,-150.0,0.00024318,2]
[374571491,1753360236179,-150.0,0.0002432,4]
[374571492,1753360236189,-152.29,0.00024329,2]
[374571493,1753360236199,-2500.0,0.00024333,2]
[374571494,1753360236209,-150.0,0.00024362,4]
[374571495,1753360236219,-150.0,0.00024362,4]
[374571496,1753360236228,-150.0,0.00024362,4]
[374571497,1753360236238,-449.0,0.0002437,2]
[374571498,1753360236247,-1580.24444285,0.00024383,11]
[374571499,1753360236257,-1000.0,0.00024385,2]
[374571500,1753360236267,-179.82484758,0.00024398,2]
[374571501,1753360236277,-150.0,0.00024403,4]
[374571502,1753360236287,-150.0,0.00024487,4]
[374571503,1753360236296,-150.0,0.000245,2]
[374571504,1753360236305,-1000.0,0.00024521,2]
[374571505,1753360236314,-392.05006923,0.00024521,2]
[374571506,1753360236323,-1000.0,0.00024521,2]
[374571507,1753360236332,-1000.0,0.00024521,2]
[374571508,1753360236341,-1000.0,0.00024521,2]
[374571509,1753360236350,-1000.0,0.00024521,2]
[374571510,1753360236359,-1000.0,0.00024521,2]
[374571511,1753360236368,-1580.24444285,0.00024521,11]
[374571512,1753360236378,-150.0,0.0002457,4]
[374571513,1753360236387,-150.0,0.0002457,4]
[374571514,1753360236397,-868.0,0.00024592,2]
[374571515,1753360236407,-150.0,0.00024592,2]
[374571516,1753360236416,-789.0,0.00024592,2]
[374571517,1753360236425,-296.86566365,0.00024592,2]
[374571518,1753360236434,-155.37185968,0.000246,2]
[374571519,1753360236443,-150.0,0.00024632,2]
[374571520,1753360236453,-216.0,0.0002464,2]
[374571521,1753360236462,-150.0,0.00024643,2]
[374571522,1753360236472,-150.0,0.00024653,4]
[374571523,1753360236482,-303.87,0.00024655,2]
[374571524,1753360236492,-150.0,0.00024655,2]
[374571525,1753360236501,-151.0,0.00024658,2]
[374571526,1753360236511,-253.21098327,0.00024658,2]
[374571527,1753360236521,-1000.0,0.00024658,3]
[374571528,1753360236531,-1000.0,0.00024658,3]
[374571529,1753360236541,-1046.0,0.00024658,3]
[374571530,1753360236550,-150.0,0.00024658,2]
[374571531,1753360236559,-1580.24444285,0.00024659,11]
[374571532,1753360236569,-150.0,0.00024667,2]
[374571533,1753360236578,-150.0,0.00024677,2]
[374571534,1753360236587,-150.0,0.00024679,2]
[374571535,1753360236597,-2018.0,0.000247,2]
[374571536,1753360236608,-563.0,0.000247,2]
[374571537,1753360236618,-1269.0,0.000247,2]
[374571538,1753360236630,-960.0,0.000247,2]
[374571539,1753360236640,-1688.0,0.000247,2]
[374571540,1753360236650,-596.0,0.000247,2]
[374571541,1753360236660,-1289.0,0.000247,2]
[374571542,1753360236669,-890.506,0.000247,2]
[374571543,1753360236678,-1167.0,0.000247,2]
[374571544,1753360236688,-4129.0,0.000247,2]
[374571545,1753360236698,-6055.0,0.000247,2]
[374571546,1753360236708,-2000.0,0.000247,2]
[374571547,1753360236718,-157.97267683,0.000247,2]
[374571548,1753360236727,-839.91269601,0.000247,3]
[374571549,1753360236738,-211.01152796,0.000247,3]
[374571550,1753360236747,-477.18900901,0.000247,3]
[374571551,1753360236756,-160.0,0.000247,3]
[374571552,1753360236766,-150.0,0.00024716,2]
[374571553,1753360236776,-278.0390909,0.00024728,2]
[374571554,1753360236787,-150.0,0.00024736,4]
[374571555,1753360236797,-500.0,0.00024773,2]
[374571556,1753360236807,-152.4981085,0.0002478,2]
[374571557,1753360236816,-152.33685,0.00024783,7]
[374571558,1753360236826,-1580.24444285,0.00024797,11]
[374571559,1753360236835,-1420.71,0.000248,7]
[374571560,1753360236845,-3261.27,0.000248,14]
[374571561,1753360236855,-6000.0,0.000248,3]
[374571562,1753360236865,-839.91269601,0.000248,3]
[374571563,1753360236876,-221589.070588,0.000248,3]
[374571564,1753360236885,-150.0,0.0002482,4]
[374571565,1753360236895,-150.0,0.00024823,2]
[374571566,1753360236905,-373.07297731,0.00024825,2]
[374571567,1753360236915,-160.0,0.00024825,2]
[374571568,1753360236924,-248.71531821,0.00024825,2]
[374571569,1753360236933,-152.0,0.00024857,4]
[374571570,1753360236943,-868.0,0.00024866,2]
[374571571,1753360236953,-789.0,0.00024866,2]
[374571572,1753360236963,-16522.4539304,0.00024866,2]
[374571573,1753360236973,-164.95412435,0.0002487,2]
[374571574,1753360236982,-150.0,0.00024872,2]
[374571575,1753360236993,-150.0,0.00024873,2]
[374571576,1753360237002,-2849.28,0.00024876,2]
[374571577,1753360237012,-2268.0,0.00024877,2]
[374571578,1753360237022,-393.48439842,0.0002488,2]
[374571579,1753360237031,-4605.4962145,0.0002488,2]
[374571580,1753360237041,-1860.4731796,0.0002488,2]
[374571581,1753360237050,-31465.3184449,0.0002488,2]
[374571582,1753360237060,-575.4314734,0.0002488,2]
[374571583,1753360237069,-132690.4579173,0.0002488,2]
[374571584,1753360237079,-145960.1140888,0.00024883,2]
[374571585,1753360237089,-18292.9908267,0.00024883,2]
[374571586,1753360237098,-150.0,0.00024896,15]
[374571587,1753360237108,-21886.30840429,0.00024897,2]
[374571592,1753360237957,-208.10756509,0.00019245,2]
[374571593,1753360237969,-1719.36522482,0.000248,2]
[374571595,1753360237979,-839.91269601,0.00024836,2]
[374571597,1753360237990,-4516.41451408,0.00024897,2]
[374571828,1753360240218,-152.88,0.00022918,2]
[374571830,1753360240228,-807.0,0.000247,2]
[374571832,1753360240238,-106016.58612966,0.00024897,2]
[374571835,1753360240249,-16692.2000055,0.00024897,2]
[374572061,1753360242550,-2383.0,0.00024897,2]
[374572090,1753360242825,-2246.24887147,0.00024897,2]
[374572092,1753360242837,-521.28189039,0.00024897,2]
[374572099,1753360242889,-585.49999999,0.00024897,2]
[374572105,1753360242938,-1858.09300021,0.00024897,2]
[374572380,1753360245647,-21379.0,0.000247,2]
[374572382,1753360245658,-147120.21996205,0.00024897,2]
[374572384,1753360245667,-35406.3352252,0.00024897,2]
[374572389,1753360245703,-1701.04622801,0.00024897,2]
[374576347,1753360308352,156.88,0.00013699,2]
[374576348,1753360630086,150.0,0.00027397,120]
[374576351,1753360965852,209.33,0.00025668,120]
[374576356,1753360995400,654.50144676,0.00027397,120]
[374576357,1753361033699,200.0,0.00027297,120]
[374576391,1753361379549,156.88,0.00013699,2]
[374576394,1753361431988,-333.73899998,0.00019178,2]
[374576395,1753361432000,-249.99100002,0.00019178,2]
[374576396,1753361432011,-190.271168,0.0001945,2]
[374576397,1753361432020,-151.0,0.0001945,2]
[374576398,1753361432030,-315.34955558,0.0001955,2]
[374576399,1753361432040,-150.82,0.0001955,2]
[374576400,1753361432049,-151.57,0.0001955,2]
[374576401,1753361432058,-151.18,0.0001955,2]
[374576402,1753361432068,-151.0,0.00019998,2]
[374576403,1753361432077,-537.0,0.0002,2]
[374576404,1753361432087,-583.73,0.00020817,2]
[374576405,1753361432097,-163.57,0.00020854,2]
[374576406,1753361432107,-265.34158668,0.0002091,2]
[374576407,1753361432118,-300.0,0.00021999,2]
[374576408,1753361432128,-852.0,0.00021999,2]
[374576409,1753361432138,-414.0,0.00022,2]
[374576410,1753361432148,-943.96,0.00022,2]
[374576411,1753361432158,-231.28369723,0.00022087,2]
[374576412,1753361432167,-507.0,0.00022217,2]
[374576413,1753361432177,-180.0,0.00022238,7]
[374576415,1753361432187,-300.0,0.00022455,2]
[374576417,1753361432197,-300.0,0.00022455,2]
[374576418,1753361432207,-583.73,0.00022456,2]
[374576419,1753361432216,-150.0,0.00022488,2]
[374576420,1753361432226,-150.0,0.00022488,2]
[374576421,1753361432235,-275.75104563,0.00022488,2]
[374576422,1753361432245,-150.0,0.00022488,2]
[374576423,1753361432255,-150.0,0.00022488,2]
[374576424,1753361432265,-150.0,0.00022488,2]
[374576425,1753361432275,-150.0,0.00022488,2]
[374576426,1753361432285,-150.0,0.00022488,2]
[374576427,1753361432295,-150.0,0.00022568,4]
[374576428,1753361432304,-1000.0,0.00022572,2]
[374576429,1753361432314,-183.54,0.00022572,2]
[374576430,1753361432324,-150.0,0.00022649,4]
[374576431,1753361432334,-150.0,0.00022705,2]
[374576432,1753361432344,-150.0,0.00022729,4]
[374576433,1753361432354,-150.0,0.00022765,4]
[374576434,1753361432365,-250.0,0.00022805,2]
[374576435,1753361432375,-150.0,0.0002281,4]
[374576436,1753361432385,-209.33,0.00022816,2]
[374576437,1753361432394,-150.0,0.00022891,4]
[374576438,1753361432404,-427.78485895,0.000229,8]
[374576439,1753361432414,-150.0,0.00022971,4]
[374576440,1753361432424,-2000.0,0.00023,2]
[374576441,1753361432434,-201.02436368,0.0002303,2]
[374576442,1753361432447,-346.92554585,0.0002303,2]
[374576443,1753361432456,-239.47332549,0.0002303,2]
[374576444,1753361432466,-427.78485871,0.00023038,8]
[374576445,1753361432476,-150.0,0.00023043,4]
[374576446,1753361432487,-2751.0,0.00023044,2]
[374576447,1753361432498,-150.0,0.00023052,4]
[374576448,1753361432507,-150.0,0.00023132,4]
[374576449,1753361432519,-240.8,0.00023135,2]
[374576450,1753361432528,-666.0,0.00023154,3]
[374576451,1753361432538,-427.78485871,0.00023176,8]
[374576452,1753361432547,-405.0,0.0002318,2]
[374576453,1753361432557,-513.43,0.00023193,2]
[374576454,1753361432567,-247.72768374,0.00023212,2]
[374576455,1753361432576,-150.0,0.00023213,4]
[374576456,1753361432585,-500.0,0.00023233,2]
[374576457,1753361432595,-150.0,0.00023294,4]
[374576458,1753361432604,-427.78485871,0.00023314,9]
[374576459,1753361432615,-150.0,0.00023321,4]
[374576460,1753361432625,-150.0,0.00023374,4]
[374576461,1753361432634,-427.78485871,0.00023452,9]
[374576462,1753361432644,-150.0,0.00023455,4]
[374576463,1753361432654,-239.84119403,0.00023456,2]
[374576464,1753361432663,-150.0,0.00023501,2]
[374576465,1753361432673,-150.0,0.00023535,4]
[374576466,1753361432682,-1572.19340214,0.00023555,4]
[374576468,1753361438013,-519.08,0.00023555,4]
[374576469,1753361438073,-1242.94742862,0.00023555,4]
[374576652,1753361440178,-263.38516924,0.00023555,4]
[374576655,1753361440188,-13.74259984,0.00023555,4]
[374576661,1753361440237,-190.50140016,0.00023555,4]
[374576663,1753361440247,-427.78485871,0.0002359,9]
[374576665,1753361440257,-150.0,0.00023598,4]
[374576667,1753361440267,-150.0,0.00023613,2]
[374576669,1753361440277,-150.0,0.00023616,4]
[374576671,1753361440288,-150.0,0.00023697,4]
[374576673,1753361440298,-943.96,0.00023701,2]
[374576675,1753361440307,-427.78485871,0.00023728,9]
[374576677,1753361440317,-150.0,0.00023737,4]
[374576679,1753361440327,-150.0,0.00023737,4]
[374576681,1753361440336,-150.0,0.00023777,4]
[374576683,1753361440345,-286.52124804,0.00023792,2]
[374576685,1753361440355,-381.0,0.000238,2]
[374576687,1753361440368,-150.0,0.00023812,2]
[374576689,1753361440379,-258.8,0.00023836,2]
[374576691,1753361440388,-150.0,0.00023858,4]
[374576693,1753361440398,-507.0,0.0002386,4]
[374576695,1753361440408,-427.78485871,0.00023866,10]
[374576697,1753361440417,-477.18900901,0.00023872,2]
[374576699,1753361440427,-160.0,0.00023872,2]
[374576701,1753361440438,-211.01152796,0.00023872,2]
[374576703,1753361440451,-839.91269601,0.00023872,2]
[374576705,1753361440460,-150.0,0.00023876,4]
[374576707,1753361440470,-239.0,0.000239,2]
[374576709,1753361440480,-947.0,0.000239,2]
[374576711,1753361440490,-150.0,0.00023938,4]
[374576713,1753361440500,-150.0,0.00023953,2]
[374576715,1753361440509,-427.78485871,0.00024003,10]
[374576717,1753361440519,-150.0,0.00024016,2]
[374576719,1753361440530,-150.0,0.00024019,4]
[374576721,1753361440540,-150.0,0.00024035,2]
[374576723,1753361440549,-183.54,0.00024077,2]
[374576725,1753361440558,-583.73,0.00024096,2]
[374576727,1753361440568,-150.0,0.000241,4]
[374576728,1753361440578,-150.0,0.00024117,2]
[374576730,1753361440588,-150.0,0.0002414,2]
[374576732,1753361440598,-427.78485871,0.00024141,10]
[374576734,1753361440608,-150.0,0.00024153,4]
[374576736,1753361440622,-301.08,0.00024174,2]
[374576738,1753361440631,-326.59,0.00024174,2]
[374576740,1753361440641,-4481.36,0.00024174,2]
[374576742,1753361440650,-150.99,0.00024174,2]
[374576744,1753361440660,-150.99,0.00024174,2]
[374576746,1753361440669,-999.99,0.00024174,2]
[374576749,1753361440680,-2756.60982577,0.00024174,2]
[374576757,1753361440747,-7243.38017423,0.00024174,2]
[374576759,1753361440756,-1913.78,0.00024174,2]
[374576761,1753361440766,-9999.99,0.00024174,2]
[374576763,1753361440776,-412.54,0.00024174,2]
[374576765,1753361440785,-8546.07235308,0.00024174,2]
[374576767,1753361440799,-1453.91764692,0.00024174,2]
[374576769,1753361440809,-150.0,0.00024179,2]
[374576771,1753361440819,-150.0,0.0002418,4]
[374576773,1753361440828,-150.0,0.00024203,2]
[374576775,1753361440838,-150.0,0.00024234,2]
[374576777,1753361440847,-150.0,0.00024239,2]
[374576779,1753361440857,-150.0,0.00024252,2]
[374576781,1753361440867,-150.0,0.00024261,4]
[374576783,1753361440877,-427.78485871,0.00024279,10]
[374576785,1753361440886,-190.27116799,0.00024304,2]
[374576788,1753361440896,-150.0,0.00024324,2]
[374576790,1753361440907,-150.0,0.00024341,4]
[374576792,1753361440916,-150.0,0.0002436,2]
[374576794,1753361440926,-397.0,0.0002437,2]
[374576796,1753361440936,-420.0,0.0002439,2]
[374576798,1753361440945,-420.0,0.0002439,2]
[374576800,1753361440955,-1139.913691,0.00024399,8]
[374576802,1753361440964,-359.76179104,0.00024399,2]
[374576804,1753361440973,-150.0,0.00024404,2]
[374576806,1753361440983,-427.78485871,0.00024417,11]
[374576808,1753361440993,-150.0,0.00024422,4]
[374576810,1753361441002,-150.0,0.00024431,4]
[374576812,1753361441012,-163.47280337,0.00024475,2]
[374576814,1753361441022,-300.0,0.000245,8]
[374576816,1753361441032,-150.0,0.00024503,4]
[374576818,1753361441042,-1014.33,0.00024531,2]
[374576820,1753361441052,-816.4,0.00024531,2]
[374576822,1753361441061,-1632.32,0.00024531,2]
[374576825,1753361441072,-816.4,0.00024531,2]
[374576826,1753361441081,-816.4,0.00024531,2]
[374576829,1753361441091,-456.3,0.00024531,2]
[374576831,1753361441101,-427.78485871,0.00024555,11]
[374576833,1753361441111,-150.0,0.00024583,4]
[374576835,1753361441124,-807.0,0.00024589,2]
[374576837,1753361441134,-953.0,0.00024589,2]
[374576839,1753361441144,-3354.0,0.00024589,2]
[374576841,1753361441154,-960.0,0.00024589,2]
[374576843,1753361441163,-563.0,0.00024589,2]
[374576845,1753361441173,-2018.0,0.00024589,2]
[374576847,1753361441183,-1269.0,0.00024589,2]
[374576849,1753361441193,-1167.0,0.00024589,2]
[374576851,1753361441203,-890.0,0.00024589,2]
[374576853,1753361441212,-1289.0,0.00024589,2]
[374576855,1753361441222,-1688.0,0.00024589,2]
[374576857,1753361441231,-596.0,0.00024589,2]
[374576859,1753361441241,-4129.0,0.00024589,2]
[374576861,1753361441251,-863.0,0.00024589,2]
[374576864,1753361441260,-2297.44579624,0.00024589,2]
[374577397,1753361446578,-3757.55420376,0.00024589,2]
[374577399,1753361446588,-21201.19146299,0.00024589,2]
[374577402,1753361446604,-177.80853701,0.00024589,2]
[374577404,1753361446613,-89.56146299,0.000246,8]
[374577406,1753361446628,-510.43853701,0.000246,8]
[374577408,1753361446639,-150.0,0.00024664,4]
[374577410,1753361446649,-427.78485871,0.00024693,11]
[374577412,1753361446658,-200.0,0.00024698,2]
[374577414,1753361446667,-148.04620792,0.000247,9]
[374579752,1753361548011,264.0,0.00026036,120]
[374579753,1753361548484,264.0,0.00026026,120]
[374579754,1753361548965,264.0,0.00026016,120]
[374579755,1753361557285,157.0,0.00022,5]
[374579756,1753361559027,734.19,0.00022,2]
[374579757,1753361625047,160.0,0.00022,3]
[374579758,1753361628523,652.62,0.00022,2]
[374579759,1753361698884,580.1,0.00022,2]
[374579760,1753361709731,374.0,0.00022,2]
[374579761,1753361769602,515.65,0.00022,2]
[374579762,1753361830957,359.0,0.00022,2]
[374579763,1753361839084,458.35,0.00022,2]
[374579764,1753361895248,5213.78115778,0.00022,2]
[374579765,1753361911965,407.43,0.00022,2]
[374579766,1753361982783,362.16,0.00022,2]
[374579767,1753362002986,7460.64256543,0.0001838,2]
[374579768,1753362003608,696.07627679,0.0001838,2]
[374579769,1753362089155,556.69,0.00026882,120]
[374579835,1753362132122,996.15,0.00027397,120]
[374579836,1753362132738,996.15,0.00027397,120]
[374579837,1753362132991,996.15,0.00027397,120]
[374579838,1753362133235,996.15,0.00027397,120]
[374579839,1753362133525,996.15,0.00027397,120]
[374579840,1753362136318,996.15,0.00027397,120]
[374579841,1753362136458,996.15,0.00027397,120]
[374579842,1753362136698,996.15,0.00027397,120]
[374579843,1753362136945,996.15,0.00027397,120]
[374579844,1753362137189,996.15,0.00027397,120]
[374579845,1753362137418,996.15,0.00027397,120]
[374579846,1753362138004,996.15,0.00027397,120]
[374579847,1753362138259,996.15,0.00027397,120]
[374579848,1753362138521,996.15,0.00027397,120]
[374579849,1753362138767,996.15,0.00027397,120]
[374579850,1753362139009,996.15,0.00027397,120]
[374579851,1753362139254,996.15,0.00027397,120]
[374579852,1753362139495,996.15,0.00027397,120]
[374579853,1753362140283,996.15,0.00027397,120]
[374579854,1753362140371,996.15,0.00027397,120]
[374579855,1753362141149,996.15,0.00027397,120]
[374579856,1753362141373,996.15,0.00027397,120]
[374579857,1753362141627,996.15,0.00027397,120]
[374579858,1753362141862,996.28176799,0.00027397,120]
[374579865,1753362188193,21263.0,0.00027397,120]
[374579866,1753362193902,-300.0,0.00018379,2]
[374579867,1753362193931,-4303.92372321,0.0001838,2]
[374579868,1753362193956,-5000.0,0.0001838,2]
[374579869,1753362193985,-5000.0,0.0001838,2]
[374579870,1753362194011,-5000.0,0.0001838,2]
[374579871,1753362194037,-420.0,0.00020046,2]
[374579872,1753362194061,-300.0,0.00020218,2]
[374579873,1753362194089,-440.38427193,0.000209,4]
[374579874,1753362194116,-440.3842718,0.00021038,4]
[374579875,1753362194142,-440.3842718,0.00021176,4]
[374579876,1753362194169,-440.3842718,0.00021314,5]
[374579877,1753362194194,-440.3842718,0.00021452,5]
[374579878,1753362194221,-440.3842718,0.0002159,5]
[374579879,1753362194249,-440.3842718,0.00021728,5]
[374579880,1753362194274,-587.0,0.00021864,2]
[374579881,1753362194303,-440.3842718,0.00021866,6]
[374579882,1753362196372,321.92,0.00022,2]
[374579883,1753362215214,597.75,0.00019178,2]
[374579884,1753362216473,597.75,0.00020868,2]
[374579919,1753362541362,1000.0,0.00021,30]
[374579926,1753362623804,156.88,0.00013699,2]
[374579934,1753362633481,-165.45,0.0002144,2]
[374579935,1753362633491,-557.64475359,0.00021814,2]